bitfinex-derivatives/quotes_BTCF0:USTF0_20250417
["timestamp","ask_amount","ask_price","bid_price","bid_amount"]
[1744906988869,1e-08,84884.0,84883.0,0.12646755]
[1744906989076,1e-08,84884.0,84883.0,0.28966755]
[1744906991583,8.001e-05,84884.0,84883.0,0.28966755]
[1744906992577,0.07778001,84884.0,84883.0,0.28966755]
[1744906992777,8.001e-05,84884.0,84883.0,0.28966755]
[1744906993789,8.001e-05,84884.0,84883.0,0.70416755]
[1744906993987,0.0160462,84893.0,84885.0,0.0589138]
[1744906994175,0.0160462,84893.0,84890.0,0.4786207]
[1744906994577,0.03391903,84891.0,84890.0,0.8931207]
[1744906994885,0.11793371,84914.0,84913.0,0.1177887]
[1744906995081,0.0785,84923.0,84917.0,0.1177832]
[1744906995386,0.0785,84923.0,84890.0,0.32229063]
[1744906995387,8e-05,84914.0,84890.0,0.32229063]
[1744906995689,0.0589045,84900.0,84898.0,0.1178082]
[1744906995892,0.7197102,84899.0,84898.0,0.1178082]
[1744906996197,0.1178096,84898.0,84897.0,0.1976109]
[1744906996387,0.1278096,84898.0,84897.0,0.1976109]
[1744906996586,0.2904096,84898.0,84897.0,0.1976109]
[1744906996792,0.2804096,84898.0,84897.0,0.1976109]
[1744906997090,0.1767219,84896.0,84895.0,0.1178127]
[1744906997289,0.0589061,84896.0,84889.0,0.00017665]
[1744906997499,0.1178207,84890.0,84889.0,0.00017665]
[1744906997790,0.1178401,84876.0,84869.0,0.59910375]
[1744906997991,0.1178484,84870.0,84869.0,0.23830375]
[1744906998182,0.1178595,84862.0,84859.0,0.3608]
[1744906998379,0.1178595,84862.0,84848.0,0.3608]
[1744906998591,0.1178706,84854.0,84847.0,8e-05]
[1744906998781,0.1178706,84854.0,84850.0,0.0589376]
[1744906999092,0.1178706,84854.0,84853.0,0.117872]
[1744906999487,0.2782706,84854.0,84853.0,0.117872]
[1744906999688,0.1604,84854.0,84853.0,0.117872]
[1744907000197,0.00017676,84866.0,84865.0,0.1178554]
[1744907000381,0.00017676,84866.0,84865.0,0.4786554]
[1744907000587,0.00017676,84866.0,84865.0,0.6411554]
[1744907000983,0.00017676,84866.0,84865.0,0.65141197]
[1744907001194,0.0589117,84888.0,84887.0,0.1767338]
[1744907001395,0.1178286,84887.0,84886.0,0.1767359]
[1744907001587,0.1631,84889.0,84888.0,0.1178234]
[1744907002494,0.16318,84889.0,84888.0,0.1178234]
[1744907002801,0.281002,84889.0,84888.0,0.1178234]
[1744907004198,0.1178304,84883.0,84882.0,0.1985308]
[1744907004387,0.1178284,84885.0,84884.0,0.1178276]
[1744907004591,0.2008284,84885.0,84884.0,0.1178276]
[1744907005302,0.083,84885.0,84884.0,0.1178276]
[1744907005892,0.08308,84885.0,84884.0,0.1985276]
[1744907006092,0.083,84885.0,84884.0,0.1985276]
[1744907007199,0.2008276,84885.0,84884.0,0.1985276]
[1744907008214,0.083,84885.0,84884.0,0.1985276]
[1744907008806,0.0588983,84908.0,84896.0,0.1178123]
[1744907009002,0.1177965,84908.0,84896.0,0.85566366]
[1744907009204,0.00025584,84897.0,84896.0,0.8394123]
[1744907009414,0.00025584,84897.0,84896.0,2.5016123]
[1744907009618,0.11806674,84897.0,84896.0,0.3608]
[1744907009805,0.1178262,84887.0,84886.0,0.1178253]
[1744907010009,0.1178262,84887.0,84886.0,0.2012253]
[1744907010211,0.2008262,84887.0,84886.0,0.2012253]
[1744907010520,0.083,84887.0,84886.0,0.2012253]
[1744907010723,0.2008248,84887.0,84886.0,0.2012253]
[1744907011113,0.2008248,84887.0,84886.0,0.1178253]
[1744907011413,0.083,84887.0,84886.0,0.1178253]
[1744907011618,0.08308,84887.0,84886.0,0.2012253]
[1744907011819,0.08308,84887.0,84886.0,0.2833253]
[1744907012514,0.08308,84887.0,84886.0,0.2012253]
[1744907013117,0.2009048,84887.0,84886.0,0.2012253]
[1744907013319,0.2840048,84887.0,84886.0,0.1178253]
[1744907013623,0.1767448,84885.0,84884.0,0.1178282]
[1744907013816,0.16618,84887.0,84883.0,0.0589145]
[1744907014016,0.16618,84887.0,84886.0,0.1178262]
[1744907014213,0.1178141,84895.0,84894.0,0.1178151]
[1744907014414,0.1178141,84895.0,84894.0,0.4786151]
[1744907015725,0.0822,84896.0,84895.0,0.1178137]
[1744907015925,0.0822,84896.0,84895.0,0.2028137]
[1744907016911,0.16008,84896.0,84895.0,0.2028137]
[1744907017111,0.2778123,84896.0,84895.0,0.1178137]
[1744907017312,0.2778123,84896.0,84875.0,0.3608]
[1744907017313,0.1767303,84892.0,84891.0,0.117819]
[1744907017523,0.0589096,84892.0,84891.0,0.117819]
[1744907017720,0.1558,84892.0,84891.0,0.117819]
[1744907017927,0.2736179,84892.0,84891.0,0.117819]
[1744907018222,8e-05,84896.0,84889.0,0.2617318]
[1744907018223,8e-05,84896.0,84895.0,0.1178137]
[1744907018617,0.00017584,84897.0,84896.0,0.1178123]
[1744907019317,0.00017584,84897.0,84896.0,0.2015123]
[1744907021427,0.25017584,84897.0,84880.0,0.00017676]
[1744907021619,0.4786332,84881.0,84880.0,0.00017676]
[1744907021815,0.458,84881.0,84880.0,0.00017676]
[1744907022025,0.458,84881.0,84880.0,0.11801126]
[1744907022420,0.45808,84881.0,84880.0,0.11801126]
[1744907022922,0.5759132,84881.0,84880.0,0.27441126]
[1744907023230,0.5759132,84881.0,84880.0,0.15657676]
[1744907023231,8e-05,84881.0,84880.0,0.15657676]
[1744907023420,8e-05,84881.0,84880.0,0.27441126]
[1744907023622,0.1178281,84885.0,84884.0,0.117829]
[1744907023919,0.0589125,84887.0,84886.0,0.1178262]
[1744907024420,0.1178276,84885.0,84884.0,0.1363144]
[1744907025125,0.0589131,84886.0,84885.0,0.1178276]
[1744907025629,0.0589131,84886.0,84885.0,0.1955276]
[1744907026231,0.1767357,84888.0,84887.0,0.1178248]
[1744907027122,0.5238,84890.0,84886.0,0.0589131]
[1744907027123,0.6416217,84890.0,84889.0,0.117822]
[1744907027317,0.08,84890.0,84889.0,0.117822]
[1744907027523,0.08,84890.0,84889.0,0.195522]
[1744907027930,0.00010801,84899.0,84896.0,0.1178123]
[1744907028229,0.11798674,84897.0,84896.0,0.1178123]
[1744907028431,0.11798674,84897.0,84896.0,0.2003123]
[1744907028432,0.11806674,84897.0,84896.0,0.2003123]
[1744907028627,0.20226674,84897.0,84896.0,0.21575002]
[1744907029335,0.20226674,84897.0,84896.0,0.23266057]
[1744907030635,0.20226674,84897.0,84896.0,0.15016057]
[1744907031328,0.28146674,84897.0,84896.0,0.15016057]
[1744907031630,0.16365584,84897.0,84896.0,0.15016057]
[1744907032031,0.16365584,84897.0,84896.0,0.13325002]
[1744907032729,0.08445584,84897.0,84896.0,0.13325002]
[1744907033127,0.00025584,84897.0,84896.0,0.13325002]
[1744907033428,0.00025584,84897.0,84896.0,0.21745002]
[1744907033636,0.00017584,84897.0,84896.0,0.23338955]
[1744907033830,0.00025584,84897.0,84896.0,0.23338955]
[1744907034333,0.00025584,84897.0,84896.0,0.21745002]
[1744907034926,0.00025584,84897.0,84896.0,0.29765002]
[1744907035535,0.00025584,84897.0,84896.0,0.30782058]
[1744907035738,0.00025584,84897.0,84896.0,0.32063354]
[1744907035939,0.00025584,84897.0,84896.0,0.33732138]
[1744907036139,0.00025584,84897.0,84896.0,0.33732139]
[1744907036630,0.0806,84901.0,84900.0,0.1178068]
[1744907036828,0.0806,84901.0,84900.0,0.13061973]
[1744907037028,0.11790491,84908.0,84907.0,0.1177971]
[1744907037229,0.1177969,84908.0,84907.0,0.13061003]
[1744907037440,0.1178769,84908.0,84907.0,0.14604775]
[1744907038635,8e-05,84908.0,84907.0,0.13323482]
[1744907038839,0.1983757,84908.0,84907.0,0.13323482]
[1744907039037,0.2761757,84908.0,84907.0,0.13323482]
[1744907039333,0.15838,84908.0,84907.0,0.13323482]
[1744907040036,0.2761757,84908.0,84907.0,0.13323482]
[1744907042337,0.2761757,84908.0,84907.0,0.1177971]
[1744907042539,0.15838,84908.0,84907.0,0.1177971]
[1744907042728,0.3608,84913.0,84912.0,0.1177901]
[1744907042933,0.3608,84913.0,84912.0,0.13054998]
[1744907043439,0.3608,84913.0,84912.0,0.1393775]
[1744907043737,0.3608,84913.0,84912.0,0.3061775]
[1744907044433,0.4395,84913.0,84912.0,0.3061775]
[1744907045233,0.0787,84913.0,84912.0,0.3061775]
[1744907045439,0.00010801,84916.0,84915.0,0.117786]
[1744907045630,0.00010801,84916.0,84915.0,0.14657128]
[1744907046034,0.11952649,84921.0,84920.0,0.117779]
[1744907046244,0.23730409,84921.0,84920.0,0.50736428]
[1744907046443,0.20532649,84921.0,84920.0,0.50752718]
[1744907046629,0.11952649,84921.0,84920.0,0.50752718]
[1744907046833,0.15422585,84930.0,84929.0,0.1177666]
[1744907047041,0.15422585,84930.0,84929.0,0.50765842]
[1744907047241,0.15422585,84930.0,84929.0,0.75765842]
[1744907047447,0.1177473,84943.0,84938.0,0.1177541]
[1744907047746,0.10798,84944.0,84938.0,0.13067688]
[1744907048143,0.05086856,84939.0,84938.0,0.13067688]
[1744907048336,0.0588715,84946.0,84944.0,0.0588723]
[1744907048642,0.01143195,84947.0,84946.0,0.117743]
[1744907048834,0.01143195,84947.0,84946.0,0.1307602]
[1744907049036,0.01143195,84947.0,84946.0,0.2915602]
[1744907049444,0.17383195,84947.0,84946.0,0.2915602]
[1744907049847,0.54165355,84947.0,84946.0,0.0130172]
[1744907050035,0.54165355,84947.0,84938.0,0.00017665]
[1744907050036,0.1177527,84939.0,84938.0,0.00017665]
[1744907050236,0.4785527,84939.0,84938.0,0.00017665]
[1744907050432,0.0588828,84930.0,84924.0,0.1177704]
[1744907050748,0.4785768,84925.0,84924.0,0.1177704]
[1744907050940,0.4785768,84925.0,84918.0,0.16]
[1744907050941,0.1177735,84924.0,84923.0,0.0801]
[1744907051136,0.0588894,84921.0,84920.0,0.1177776]
[1744907051343,0.0588918,84917.0,84913.0,0.0801]
[1744907051542,0.2413,84924.0,84915.0,0.117786]
[1744907051543,0.1624,84916.0,84915.0,0.117786]
[1744907052040,0.0808,84916.0,84915.0,0.117786]
[1744907052241,0.3608,84918.0,84917.0,0.1177832]
[1744907052544,0.4785818,84918.0,84917.0,0.1177832]
[1744907053043,0.4786618,84918.0,84917.0,0.2003832]
[1744907053245,8e-05,84918.0,84917.0,0.2003832]
[1744907053544,0.36088,84918.0,84917.0,0.2003832]
[1744907053746,0.1177832,84917.0,84916.0,0.0787]
[1744907053946,0.2831832,84917.0,84916.0,0.0787]
[1744907054645,0.3420763,84917.0,84916.0,0.1177838]
[1744907055544,0.1654,84917.0,84916.0,0.1177838]
[1744907055932,0.2832632,84917.0,84916.0,0.1177838]
[1744907056134,0.2832632,84917.0,84916.0,0.2766838]
[1744907056545,0.2832632,84917.0,84916.0,0.1951838]
[1744907057248,0.2832632,84917.0,84916.0,0.1177838]
[1744907057847,0.2831832,84917.0,84916.0,0.1177838]
[1744907058049,0.2832632,84917.0,84916.0,0.1177838]
[1744907058951,0.16548,84917.0,84916.0,0.1989838]
[1744907059153,0.2831832,84917.0,84916.0,0.1989838]
[1744907059341,0.08548,84917.0,84916.0,0.1989838]
[1744907060449,8e-05,84917.0,84916.0,0.1989838]
[1744907061152,0.1178632,84917.0,84916.0,0.1989838]
[1744907061748,8e-05,84917.0,84916.0,0.1989838]
[1744907063151,0.1178632,84917.0,84916.0,0.1989838]
[1744907063353,8e-05,84917.0,84916.0,0.1989838]
[1744907064244,0.1178632,84917.0,84916.0,0.1989838]
[1744907064652,0.058893,84915.0,84901.0,0.0589004]
[1744907064852,0.1178012,84904.0,84903.0,0.176702]
[1744907065153,0.1178012,84904.0,84903.0,0.0589008]
[1744907065345,0.3642012,84904.0,84903.0,0.0589008]
[1744907065546,0.3642012,84904.0,84903.0,0.1403008]
[1744907065948,0.2464,84904.0,84903.0,0.1403008]
[1744907066141,0.3642012,84904.0,84903.0,0.2257008]
[1744907066341,0.2015012,84904.0,84903.0,0.2257008]
[1744907067048,0.2015812,84904.0,84903.0,0.2257008]
[1744907067449,8e-05,84904.0,84903.0,0.2257008]
[1744907067669,0.36097665,84912.0,84910.0,0.1177929]
[1744907067844,0.36097665,84912.0,84911.0,0.29864993]
[1744907068049,0.36097665,84912.0,84911.0,0.37594993]
[1744907068348,0.36097665,84912.0,84911.0,0.3759464]
[1744907068653,0.05902831,84931.0,84911.0,0.27356856]
[1744907068853,0.0782,84930.0,84926.0,0.0588849]
[1744907069054,0.00019684,84930.0,84929.0,0.1177666]
[1744907069348,0.3608,84936.0,84935.0,0.1177582]
[1744907069552,0.4785568,84936.0,84935.0,0.1177582]
[1744907069752,0.5594568,84936.0,84935.0,0.1177582]
[1744907069946,0.5595368,84936.0,84935.0,0.1177582]
[1744907070147,0.44178,84936.0,84935.0,0.2006582]
[1744907070347,8e-05,84936.0,84935.0,0.2006582]
[1744907070555,0.00010801,84948.0,84941.0,0.0588743]
[1744907070759,0.441,84953.0,84946.0,0.117743]
[1744907070948,0.20945355,84947.0,84946.0,0.13047433]
[1744907071454,0.20945355,84947.0,84946.0,0.1458728]
[1744907071859,0.09171195,84947.0,84946.0,0.1458728]
[1744907072151,0.09163195,84947.0,84946.0,0.1458728]
[1744907072353,0.01151195,84947.0,84946.0,0.1458728]
[1744907072748,0.01143195,84947.0,84946.0,0.1458728]
[1744907072948,0.01151195,84947.0,84946.0,0.1458728]
[1744907074654,0.01143195,84947.0,84946.0,0.16278724]
[1744907074856,0.01151195,84947.0,84946.0,0.16278724]
[1744907075063,0.00010801,84957.0,84955.0,0.1177305]
[1744907075358,0.36090801,84957.0,84955.0,0.13046183]
[1744907075545,0.1704,84956.0,84955.0,0.1458603]
[1744907075749,0.005,84956.0,84955.0,0.1628641]
[1744907075947,0.00508,84956.0,84955.0,0.3089603]
[1744907076158,0.005,84956.0,84955.0,0.3089603]
[1744907076358,0.00508,84956.0,84955.0,0.3089603]
[1744907076759,0.005,84956.0,84955.0,0.3089603]
[1744907076958,0.00508,84956.0,84955.0,0.3089603]
[1744907077164,0.005,84956.0,84955.0,0.3089603]
[1744907077362,0.00508,84956.0,84955.0,0.3089603]
[1744907078962,0.3608,84967.0,84966.0,0.1177153]
[1744907079155,0.5207,84967.0,84966.0,0.1177153]
[1744907079350,0.4408,84967.0,84966.0,0.1177153]
[1744907079563,0.00019684,84975.0,84972.0,0.117707]
[1744907079862,0.00019684,84980.0,84972.0,0.01299817]
[1744907080065,0.1176868,84987.0,84981.0,0.11646737]
[1744907080262,0.1176873,84987.0,84981.0,0.16172661]
[1744907080567,0.3608,84986.0,84981.0,0.16172661]
[1744907080755,0.0808,84984.0,84981.0,0.16172661]
[1744907080956,0.1226931,84982.0,84981.0,0.22226401]
[1744907081464,0.1226931,84982.0,84981.0,0.22306413]
[1744907081759,0.005,84982.0,84981.0,0.14566413]
[1744907081959,0.005,84982.0,84981.0,0.13186584]
[1744907083151,0.0825,84982.0,84981.0,0.13186584]
[1744907084260,0.0825,84982.0,84981.0,0.16406274]
[1744907084461,0.0825,84982.0,84981.0,0.24876274]
[1744907084959,0.005,84982.0,84981.0,0.24876274]
[1744907085472,0.00508,84982.0,84981.0,0.24876274]
[1744907086161,0.01184854,84988.0,84987.0,0.1176862]
[1744907086377,0.37264854,84988.0,84987.0,0.13608443]
[1744907086569,0.00010801,84993.0,84988.0,0.0588419]
[1744907086753,0.1354,85000.0,84999.0,0.1176696]
[1744907086955,0.1354,85000.0,84999.0,0.13606783]
[1744907087156,0.25317621,85000.0,84999.0,0.13306807]
[1744907088262,0.76630801,85000.0,84980.0,0.3608]
[1744907088457,0.1765424,84982.0,84981.0,0.1176931]
[1744907088665,0.0588485,84980.0,84971.0,0.0588538]
[1744907088864,0.0588485,84980.0,84900.0,0.54059771]
[1744907088865,0.1177022,84978.0,84977.0,0.1176986]
[1744907089370,0.1941022,84978.0,84977.0,0.1176986]
[1744907090461,0.0764,84978.0,84977.0,0.1176986]
[1744907090665,0.1940986,84978.0,84977.0,0.1176986]
[1744907091169,0.1740986,84978.0,84977.0,0.1176986]
[1744907091762,0.1177097,84970.0,84969.0,0.00017654]
[1744907092064,0.1177097,84970.0,84969.0,0.11788764]
[1744907092065,0.1277097,84970.0,84969.0,0.11788764]
[1744907092462,0.1177097,84970.0,84969.0,0.11788764]
[1744907094366,0.1950097,84970.0,84969.0,0.11788764]
[1744907096257,0.1950097,84970.0,84969.0,0.13166506]
[1744907098876,0.1177236,84960.0,84950.0,0.0588686]
[1744907099070,0.1177236,84960.0,84956.0,0.117729]
[1744907099276,0.1277236,84960.0,84954.0,0.0806]
[1744907099574,0.1277236,84960.0,84959.0,0.478525]
[1744907100474,0.1277236,84960.0,84959.0,0.37642836]
[1744907100679,0.1277236,84960.0,84952.0,0.1386669]
[1744907100680,0.1177347,84952.0,84951.0,0.00017654]
[1744907100976,0.1177458,84944.0,84943.0,0.084]
[1744907101464,0.1177458,84944.0,84943.0,0.2017471]
[1744907101865,0.2733458,84944.0,84943.0,0.2017471]
[1744907102376,0.076,84944.0,84943.0,0.2017471]
[1744907102773,8e-05,84944.0,84943.0,0.2017471]
[1744907104278,0.1177406,84948.0,84947.0,0.1177416]
[1744907104772,0.0588596,84964.0,84946.0,0.0829]
[1744907104973,0.1599,84967.0,84960.0,0.4785236]
[1744907105373,0.1765801,84963.0,84960.0,0.49644748]
[1744907105568,0.0588577,84966.0,84960.0,2.16304748]
[1744907105873,0.11788904,84968.0,84967.0,0.1177139]
[1744907106479,0.11788904,84968.0,84967.0,0.2843139]
[1744907106677,0.00017654,84968.0,84967.0,0.30242551]
[1744907106978,0.11796904,84968.0,84967.0,0.2843139]
[1744907107162,0.11796904,84968.0,84967.0,0.1666]
[1744907107471,0.00025654,84968.0,84967.0,0.6451139]
[1744907107672,0.0816,84981.0,84967.0,0.54479224]
[1744907107976,0.0816,84981.0,84980.0,0.1176959]
[1744907108277,0.1992945,84981.0,84980.0,0.1176959]
[1744907108472,0.1993745,84981.0,84980.0,0.1176959]
[1744907108679,0.08168,84981.0,84980.0,0.1176959]
[1744907108864,0.1993745,84981.0,84980.0,0.1176959]
[1744907109066,8e-05,84981.0,84980.0,0.1176959]
[1744907109579,0.1177745,84981.0,84980.0,0.1176959]
[1744907109780,0.1176924,84983.0,84982.0,0.1176931]
[1744907110679,0.1176924,84983.0,84982.0,0.13045614]
[1744907111381,0.1176924,84983.0,84982.0,0.13044723]
[1744907111677,0.0588456,84984.0,84983.0,0.1176917]
[1744907111874,0.0588456,84984.0,84983.0,0.21014583]
[1744907112080,0.0816,84988.0,84987.0,0.1176862]
[1744907112277,0.1992848,84988.0,84987.0,0.1176862]
[1744907112680,0.117689,84986.0,84985.0,0.1176886]
[1744907112979,0.117689,84986.0,84985.0,0.13404204]
[1744907113276,0.201469,84986.0,84985.0,0.13321937]
[1744907114181,0.201469,84986.0,84985.0,0.14596213]
[1744907114579,0.201469,84986.0,84985.0,0.02827353]
[1744907114876,0.1177056,84973.0,84972.0,0.11788354]
[1744907115076,0.1177041,84975.0,84974.0,0.1177028]
[1744907115277,0.058852,84975.0,84974.0,0.1177042]
[1744907115784,0.1765558,84976.0,84975.0,0.1177028]
[1744907116079,0.0588469,84982.0,84981.0,0.1176945]
[1744907116973,0.0589269,84982.0,84981.0,0.1176945]
[1744907117178,8e-05,84982.0,84981.0,0.4784945]
[1744907117785,0.1176906,84984.0,84983.0,0.1176917]
[1744907118175,0.0588474,84981.0,84975.0,0.0808]
[1744907118378,0.1177014,84976.0,84975.0,0.198499]
[1744907118576,0.1176968,84980.0,84979.0,0.1176959]
[1744907121093,0.1176968,84980.0,84979.0,0.2014959]
[1744907121385,0.1177768,84980.0,84979.0,0.2014959]
[1744907122389,0.1177759,84980.0,84979.0,0.2014959]
[1744907122686,0.1176924,84983.0,84982.0,0.058846]
[1744907122883,0.1176924,84983.0,84982.0,0.137846]
[1744907123899,8e-05,84983.0,84982.0,0.1966931]
[1744907124781,0.1177717,84983.0,84982.0,0.1966931]
[1744907126791,0.1177014,84976.0,84975.0,0.1396505]
[1744907126996,0.1176945,84981.0,84980.0,0.0778]
[1744907127198,0.1176945,84981.0,84973.0,0.0833]
[1744907127199,0.1177042,84975.0,84974.0,0.2354042]
[1744907127385,0.1177042,84975.0,84974.0,0.3132042]
[1744907132292,0.1994042,84975.0,84974.0,0.3132042]
[1744907132494,0.2767042,84975.0,84974.0,0.3132042]
[1744907133295,0.2767042,84975.0,84974.0,0.0778]
[1744907134203,0.2767042,84975.0,84974.0,0.1955042]
[1744907134501,0.1177291,84956.0,84949.0,0.0588689]
[1744907134700,0.1177291,84956.0,84945.0,0.0588721]
[1744907135000,0.1177305,84955.0,84943.0,0.3608]
[1744907135198,0.1177402,84948.0,84939.0,0.117752]
[1744907135398,0.1177402,84948.0,84936.0,0.1177562]
[1744907135592,0.1177402,84948.0,84939.0,0.00017654]
[1744907136295,0.2880402,84948.0,84939.0,0.00017654]
[1744907136508,0.1177513,84940.0,84939.0,0.00017654]
[1744907136697,0.1177555,84937.0,84936.0,0.3608]
[1744907137001,0.11790614,84956.0,84955.0,0.1177305]
[1744907137202,0.00017654,84956.0,84955.0,0.1177305]
[1744907137397,0.11790564,84956.0,84955.0,0.1980305]
[1744907137597,0.00017654,84956.0,84955.0,0.1980305]
[1744907137798,0.00017654,84956.0,84955.0,0.20894402]
[1744907138001,0.00017654,84956.0,84955.0,0.1980305]
[1744907138195,0.00017654,84956.0,84955.0,1.6980305]
[1744907138395,0.00025654,84956.0,84955.0,1.6980305]
[1744907138703,0.00017654,84956.0,84955.0,1.6980305]
[1744907138911,1e-08,84956.0,84955.0,1.6980305]
[1744907139904,1e-08,84956.0,84955.0,0.1980305]
[1744907140706,0.11772911,84956.0,84955.0,0.1177305]
[1744907140901,0.11772911,84956.0,84955.0,0.1967305]
[1744907141705,1e-08,84956.0,84955.0,0.1967305]
[1744907141907,8.001e-05,84956.0,84955.0,0.1967305]
[1744907142103,1e-08,84956.0,84955.0,0.1967305]
[1744907142300,8.001e-05,84956.0,84955.0,0.1967305]
[1744907142599,8.001e-05,84956.0,84954.0,0.0777]
[1744907142600,0.1177305,84955.0,84954.0,0.0777]
[1744907142796,0.2009305,84955.0,84954.0,0.0777]
[1744907143002,0.1177361,84951.0,84937.0,0.0588771]
[1744907143210,0.1177361,84951.0,84948.0,0.0848]
[1744907143400,0.1177388,84949.0,84948.0,0.0848]
[1744907143709,0.1177402,84948.0,84932.0,0.0588811]
[1744907143904,0.1965402,84948.0,84944.0,0.0792]
[1744907144201,0.1965402,84948.0,84945.0,0.1177437]
[1744907144807,0.1965402,84948.0,84944.0,0.0792]
[1744907145000,0.1965402,84948.0,84943.0,0.3608]
[1744907145693,0.1966202,84948.0,84947.0,0.11791814]
[1744907145899,0.1966202,84948.0,84947.0,0.00017654]
[1744907146607,0.1965402,84948.0,84947.0,0.00017654]
[1744907146903,0.1966202,84948.0,84947.0,0.00017654]
[1744907147111,0.1766422,84934.0,84931.0,0.3608]
[1744907147312,0.1766422,84934.0,84933.0,0.0588801]
[1744907147803,0.1177575,84936.0,84935.0,0.1177575]
[1744907148804,0.0588742,84942.0,84936.0,0.1177564]
[1744907149013,0.00017654,84944.0,84934.0,0.0802]
[1744907149309,0.00017654,84944.0,84937.0,0.1177543]
[1744907149495,0.1177541,84938.0,84937.0,0.1177543]
[1744907149695,0.1177568,84936.0,84935.0,0.0588791]
[1744907150706,0.1177549,84938.0,84937.0,0.1177549]
[1744907150894,0.00017654,84944.0,84934.0,0.0802]
[1744907151094,0.00017654,84944.0,84943.0,0.4785471]
[1744907151302,1e-08,84956.0,84955.0,0.1177305]
[1744907151506,1e-08,84956.0,84955.0,0.4785305]
[1744907152010,8.001e-05,84956.0,84955.0,1.9785305]
[1744907152508,0.09780531,84959.0,84958.0,0.1177264]
[1744907153106,0.1177264,84958.0,84957.0,0.0794]
[1744907153314,0.1177264,84958.0,84957.0,0.2811277]
[1744907154402,0.1177264,84958.0,84957.0,0.2017277]
[1744907154807,0.1177264,84958.0,84957.0,0.084]
[1744907157607,0.1177264,84958.0,84957.0,0.2017277]
[1744907159205,0.1177264,84958.0,84957.0,0.084]
[1744907159406,0.1178064,84958.0,84957.0,0.084]
[1744907159606,0.4786064,84958.0,84957.0,0.084]
[1744907160520,0.1178064,84958.0,84957.0,0.084]
[1744907161013,0.2027064,84958.0,84957.0,0.084]
[1744907164211,8e-05,84958.0,84957.0,0.2017277]
[1744907164412,8e-05,84958.0,84957.0,0.2870277]
[1744907164719,0.1177212,84962.0,84961.0,0.1177222]
[1744907164918,0.1177212,84962.0,84961.0,0.4785222]
[1744907165109,0.1177212,84962.0,84961.0,1.9785222]
[1744907165313,0.1177212,84962.0,84961.0,2.1450222]
[1744907165524,0.00017654,84964.0,84963.0,0.1177194]
[1744907165916,0.11789454,84964.0,84963.0,0.1177194]
[1744907166116,0.11789454,84964.0,84963.0,0.1277194]
[1744907166427,0.11797454,84964.0,84963.0,0.1277194]
[1744907169317,0.00025654,84964.0,84963.0,0.1277194]
[1744907169721,0.00017654,84964.0,84963.0,0.1277194]
[1744907169918,0.11797454,84964.0,84963.0,0.1277194]
[1744907171011,0.11797454,84964.0,84963.0,0.01]
[1744907171322,0.1177194,84963.0,84962.0,0.1177199]
[1744907171518,0.1177194,84963.0,84962.0,0.01]
[1744907171726,0.0588648,84956.0,84952.0,0.3608]
[1744907171916,0.1177333,84953.0,84952.0,0.3608]
[1744907172718,0.1178133,84953.0,84952.0,0.3608]
[1744907173130,8e-05,84953.0,84952.0,0.4785347]
[1744907173424,8e-05,84953.0,84952.0,0.4885347]
[1744907173728,0.1177254,84959.0,84958.0,0.1765861]
[1744907173927,0.1177254,84959.0,84958.0,0.4271861]
[1744907174133,0.1177212,84962.0,84961.0,0.1765798]
[1744907174319,0.1177212,84962.0,84961.0,0.2227604]
[1744907174628,0.00017654,84964.0,84963.0,0.1177194]
[1744907174922,0.00017654,84964.0,84963.0,1.6277194]
[1744907174923,0.11789454,84964.0,84963.0,1.6277194]
[1744907175124,0.11789454,84964.0,84963.0,1.51]
[1744907175330,0.11789454,84964.0,84963.0,1.6177194]
[1744907175525,0.11797454,84964.0,84963.0,1.6177194]
[1744907178928,0.11797454,84964.0,84963.0,1.5]
[1744907179117,0.29447454,84964.0,84963.0,1.5]
[1744907179518,0.29447454,84964.0,84963.0,1.5808]
[1744907179928,0.29447454,84964.0,84963.0,1.5]
[1744907182832,0.1177208,84962.0,84961.0,0.3608]
[1744907183029,0.1177208,84962.0,84947.0,0.00017654]
[1744907183030,0.1177333,84953.0,84947.0,0.00017654]
[1744907183337,0.1177333,84953.0,84952.0,1.5]
[1744907184026,0.1177333,84953.0,84952.0,1.6177347]
[1744907184223,0.11752,84959.0,84955.0,0.0588651]
[1744907184427,0.1177291,84957.0,84956.0,0.1402645]
[1744907184626,0.1177291,84957.0,84956.0,0.2273645]
[1744907184823,0.1178091,84957.0,84956.0,0.2273645]
[1744907185026,8e-05,84957.0,84956.0,0.2273645]
[1744907185228,0.08993914,84964.0,84963.0,0.1177194]
[1744907185532,0.08993914,84964.0,84963.0,0.4885194]
[1744907185733,0.08993914,84964.0,84963.0,1.9885194]
[1744907185928,0.00017654,84964.0,84963.0,1.9885194]
[1744907186235,0.00017654,84964.0,84963.0,2.0697194]
[1744907186530,0.00017654,84964.0,84963.0,2.1550194]
[1744907187035,0.00025654,84964.0,84963.0,2.1550194]
[1744907187226,0.11789454,84964.0,84963.0,2.1550194]
[1744907187426,0.11797454,84964.0,84963.0,2.1550194]
[1744907188538,0.00025654,84964.0,84963.0,2.1550194]
[1744907188733,0.11797454,84964.0,84963.0,2.1550194]
[1744907189629,0.00017654,84964.0,84963.0,2.1550194]
[1744907189931,0.00025654,84964.0,84963.0,2.1550194]
[1744907190135,0.0588569,84967.0,84964.0,0.1765737]
[1744907190329,0.117717,84965.0,84964.0,0.5473737]
[1744907190529,0.117717,84965.0,84964.0,0.6347737]
[1744907190730,0.00010801,84974.0,84973.0,0.1177056]
[1744907191031,0.00010801,84974.0,84973.0,1.9785056]
[1744907191032,0.11781221,84974.0,84973.0,1.9785056]
[1744907191329,0.1177842,84974.0,84973.0,1.9885056]
[1744907191530,8e-05,84974.0,84973.0,1.9885056]
[1744907192233,0.1177028,84975.0,84974.0,0.1177042]
[1744907192437,0.1177005,84977.0,84976.0,0.1177]
[1744907192622,0.1177005,84977.0,84976.0,0.1277]
[1744907194228,0.0588499,84978.0,84977.0,0.1177]
[1744907194428,0.0588499,84978.0,84977.0,0.1277]
[1744907195035,0.0588499,84978.0,84977.0,1.6277]
[1744907195838,0.0588499,84978.0,84977.0,1.6177]
[1744907196041,0.1176948,84981.0,84977.0,1.51]
[1744907196241,0.1176948,84981.0,84980.0,0.4784945]
[1744907196939,0.00017654,84982.0,84981.0,0.1176945]
[1744907199236,0.00010801,84983.0,84982.0,0.1176931]
[1744907199441,0.00010801,84983.0,84982.0,0.1276931]
[1744907199641,0.0588417,84989.0,84988.0,0.1176848]
[1744907199826,0.1477417,84989.0,84988.0,0.4784848]
[1744907200228,0.1477417,84989.0,84988.0,1.9784848]
[1744907200432,0.00019684,84992.0,84988.0,1.9784848]
[1744907200433,0.00019684,84992.0,84989.0,0.1176834]
[1744907200632,0.00017617,84997.0,84996.0,0.1176737]
[1744907200944,0.11804531,84997.0,84996.0,0.1176737]